bitfinex-derivatives/quotes_SOLF0:USTF0_20240925
["timestamp","ask_amount","ask_price","bid_price","bid_amount"]
[1727285955886,19.28712569,149.88,149.79,16.03]
[1727285956083,16.03,149.86,149.78,89.02001324]
[1727285956283,16.03,149.86,149.76,18.6954]
[1727285956284,3.3372,149.84,149.8,3.3378]
[1727285956483,16.03,149.84,149.75,96.15]
[1727285956690,16.03,149.82,149.72,17.4303]
[1727285956891,3.3378,149.81,149.76,3.3386]
[1727285957683,19.3675,149.82,149.72,17.4303]
[1727285958189,16.03,149.82,149.72,17.4303]
[1727285958384,3.3373,149.83,149.79,3.3381]
[1727285958783,31.23682569,149.88,149.76,25.66]
[1727285958984,3.3367,149.86,149.77,1.2735]
[1727285959191,30.31302569,149.88,149.77,2.5549]
[1727285959389,4.65302569,149.88,149.78,25.66]
[1727285959989,4.65302569,149.88,149.79,1.3018]
[1727285960193,4.73249682,149.89,149.79,1.3018]
[1727285960593,3.3363,149.88,149.79,1.3018]
[1727285960992,4.73249682,149.89,149.79,1.3018]
[1727285961893,3.3361,149.88,149.84,3.3368]
[1727285962487,4.73249682,149.89,149.85,3.3368]
[1727285962695,4.73249682,149.89,149.79,1.3018]
[1727285962696,1.4005,149.89,149.81,25.66]
[1727285963194,4.6559257,149.89,149.81,25.66]
[1727285963394,4.7364,149.89,149.85,3.3366]
[1727285963987,8.04691752,149.89,149.85,3.3366]
[1727285964193,4.71101752,149.89,149.86,3.3365]
[1727285964695,4.71101752,149.89,149.81,25.66]
[1727285964696,8.04711752,149.89,149.81,25.66]
[1727285964893,4.71101752,149.89,149.79,1.3018]
[1727285965285,3.3362,149.88,149.84,3.3369]
[1727285966189,3.3362,149.88,149.85,3.3367]
[1727285968492,25.66,149.86,149.76,80.14]
[1727285968700,25.66,149.82,149.76,80.14]
[1727285968894,3.3378,149.81,149.76,83.4788]
[1727285969093,3.40568277,149.81,149.76,83.4788]
[1727285969388,25.66,149.82,149.76,80.14]
[1727285969593,3.3382,149.79,149.76,80.14]
[1727285969792,3.28678732,149.79,149.76,80.14]
[1727285969995,25.66,149.81,149.76,80.14]
[1727285970192,25.66,149.81,149.74,1.3848]
[1727285970395,3.3382,149.79,149.75,3.3389]
[1727285973498,3.41673552,149.81,149.76,3.3388]
[1727285973697,25.66,149.82,149.76,3.3388]
[1727285973899,3.338,149.8,149.76,3.3388]
[1727285974100,6.71320042,149.8,149.76,3.3388]
[1727285975303,3.3377,149.81,149.77,3.3384]
[1727285975501,3.3377,149.81,149.74,1.3848]
[1727285975699,3.41251466,149.8,149.74,1.3848]
[1727285975904,1.3466,149.85,149.74,1.3848]
[1727285976099,0.9650423,149.84,149.74,1.3848]
[1727285976306,25.66,149.81,149.74,1.3848]
[1727285976606,28.93853988,149.81,149.74,1.3848]
[1727285977304,1.3525,149.8,149.69,2.5721]
[1727285977505,25.66,149.78,149.71,3.3398]
[1727285977692,25.66,149.78,149.7,1.3797]
[1727285978695,3.3389,149.76,149.71,3.3399]
[1727285978906,25.66,149.78,149.71,3.3399]
[1727285979107,3.3388,149.76,149.71,3.3399]
[1727285979309,25.66,149.78,149.7,4.7198]
[1727285979909,3.3392,149.75,149.7,4.7198]
[1727285980314,25.66,149.78,149.7,1.3797]
[1727285980607,16.05,149.78,149.7,1.3797]
[1727285981005,16.05,149.78,149.72,3.3396]
[1727285981606,3.3387,149.77,149.72,3.3396]
[1727285981806,3.3387,149.77,149.73,3.3394]
[1727285982107,3.3389,149.76,149.7,1.3797]
[1727285983811,3.3389,149.76,149.72,3.3396]
[1727285984811,16.05,149.78,149.73,3.3392]
[1727285985011,16.05,149.78,149.7,1.3797]
[1727285985807,3.3389,149.76,149.7,1.3797]
[1727285986012,16.05,149.79,149.7,1.3797]
[1727285986613,3.3387,149.77,149.73,3.3394]
[1727285986914,1.3525,149.8,149.7,17.4297]
[1727285987109,1.3525,149.8,149.72,16.05]
[1727285987713,4.6905,149.8,149.75,3.3389]
[1727285988422,4.6905,149.8,149.76,3.3388]
[1727285988714,3.338,149.8,149.76,3.3388]
[1727285988912,3.27853988,149.81,149.77,3.3384]
[1727285989216,16.05,149.83,149.72,16.05]
[1727285989611,3.3376,149.82,149.77,3.3384]
[1727285989807,3.29079246,149.81,149.77,3.3384]
[1727285990611,6.62849246,149.81,149.77,3.3384]
[1727285992512,6.62849246,149.81,149.72,16.05]
[1727285992513,3.338,149.8,149.72,16.05]
[1727285993913,3.338,149.8,149.75,3.3389]
[1727285995922,3.3381,149.79,149.75,3.3389]
[1727285998017,3.338,149.8,149.76,3.3388]
[1727285999424,3.3381,149.79,149.76,3.3388]
[1727286000623,19.34079246,149.81,149.77,3.3385]
[1727286001316,19.34079246,149.81,149.78,3.3383]
[1727286001517,1.3929,149.84,149.75,16.05]
[1727286001722,4.73,149.84,149.77,16.05]
[1727286001917,1.3929,149.84,149.77,16.05]
[1727286002124,17.3966,149.85,149.78,1.3961]
[1727286002324,16.05,149.87,149.78,1.3961]
[1727286002524,16.05,149.87,149.81,3.3375]
[1727286003026,3.337,149.84,149.81,3.3375]
[1727286003531,3.337,149.84,149.8,3.3378]
[1727286003724,3.337,149.84,149.78,1.3961]
[1727286003925,3.3369,149.85,149.78,1.3961]
[1727286004725,16.05,149.85,149.78,1.3961]
[1727286005225,3.3371,149.84,149.8,3.3378]
[1727286005435,3.3371,149.84,149.78,1.3961]
[1727286005925,3.3371,149.84,149.8,3.3377]
[1727286006131,3.3373,149.83,149.8,3.3377]
[1727286006627,16.05,149.85,149.8,3.3377]
[1727286007125,1.3761,149.86,149.79,3.3381]
[1727286007328,16.05,149.84,149.79,3.3381]
[1727286007529,3.3378,149.81,149.76,1.295]
[1727286007826,3.3378,149.81,149.77,3.3385]
[1727286008230,3.338,149.8,149.77,3.3385]
[1727286008536,16.05,149.78,149.7,80.16]
[1727286008725,3.3389,149.76,149.7,80.16]
[1727286009029,19.36307193,149.78,149.7,80.16]
[1727286009222,3.3392,149.75,149.7,80.16]
[1727286009429,19.36307193,149.78,149.71,3.3399]
[1727286009430,16.05,149.76,149.71,3.3399]
[1727286009632,16.05,149.76,149.7,80.16]
[1727286010731,3.3392,149.75,149.71,3.3399]
[1727286012129,3.31307193,149.78,149.7,80.16]
[1727286012433,16.05,149.73,149.66,4.1898]
[1727286012632,16.05,149.73,149.67,3.3407]
[1727286012633,3.3399,149.71,149.67,3.3407]
[1727286013125,3.27830503,149.71,149.66,2.7886]
[1727286013332,16.05,149.76,149.66,18.8386]
[1727286013829,3.3391,149.75,149.71,3.3397]
[1727286014031,16.05,149.78,149.68,16.05]
[1727286015027,3.3389,149.76,149.71,3.3397]
[1727286015622,16.05,149.76,149.69,3.3402]
[1727286016633,16.05,149.76,149.7,3.3401]
[1727286016836,3.29969255,149.79,149.66,2.7886]
[1727286017025,3.3387,149.77,149.69,16.05]
[1727286017225,3.26961636,149.77,149.69,16.05]
[1727286017533,3.3385,149.78,149.69,16.05]
[1727286017727,3.42288158,149.77,149.73,3.3393]
[1727286018131,16.05,149.77,149.67,16.05]
[1727286018327,16.05,149.77,149.71,3.3397]
[1727286018832,16.05,149.77,149.72,3.3397]
[1727286019327,16.05,149.77,149.68,1.2872]
[1727286019532,16.05,149.77,149.71,3.3397]
[1727286020138,16.05,149.77,149.7,3.34]
[1727286020330,16.05,149.75,149.7,3.34]
[1727286020632,16.05,149.75,149.66,2.7886]
[1727286020928,3.339,149.76,149.67,16.05]
[1727286021126,17.4035,149.77,149.67,16.05]
[1727286021533,3.339,149.75,149.67,16.05]
[1727286022133,3.339,149.75,149.71,3.3398]
[1727286026039,3.3389,149.76,149.72,3.3397]
[1727286027138,19.3887,149.77,149.73,3.3394]
[1727286027339,3.3387,149.77,149.69,16.05]
[1727286027833,3.3387,149.77,149.73,3.3393]
[1727286028334,8.11523392,149.78,149.74,3.3392]
[1727286028737,8.11523392,149.78,149.75,3.339]
[1727286028933,3.38913392,149.78,149.75,3.339]
[1727286030831,6.72753392,149.78,149.75,3.339]
[1727286031032,6.72753392,149.78,149.74,3.3391]
[1727286031238,19.43913392,149.78,149.69,16.05]
[1727286031438,16.05,149.77,149.67,16.05]
[1727286032131,19.37876712,149.77,149.67,16.05]
[1727286032332,3.3389,149.76,149.72,3.3396]
[1727286033044,3.3391,149.75,149.72,3.3396]
[1727286033737,3.3389,149.76,149.72,3.3396]
[1727286035840,3.3391,149.75,149.72,3.3396]
[1727286037546,3.3389,149.76,149.72,3.3396]
[1727286038535,3.339,149.75,149.67,16.05]
[1727286038740,19.37876712,149.77,149.67,16.05]
[1727286039042,3.3391,149.75,149.71,3.3398]
[1727286039445,19.37876712,149.77,149.71,3.3398]
[1727286039645,19.37876712,149.77,149.7,3.3401]
[1727286039839,16.05,149.73,149.66,4.1359]
[1727286040347,3.3398,149.72,149.68,3.3404]
[1727286040546,3.3438043,149.72,149.66,4.1359]
[1727286040747,16.05,149.74,149.66,4.1359]
[1727286040948,19.3894,149.74,149.7,3.34]
[1727286041446,22.76394885,149.74,149.7,3.34]
[1727286041850,19.42454885,149.74,149.71,3.3398]
[1727286042850,16.05,149.78,149.69,16.05]
[1727286043148,3.3388,149.76,149.69,16.05]
[1727286043344,3.3388,149.76,149.72,3.3395]
[1727286048755,3.3388,149.76,149.73,3.3394]
[1727286050455,3.3388,149.76,149.72,3.3396]
[1727286050650,16.05,149.77,149.69,16.05]
[1727286050847,16.05,149.77,149.71,3.3398]
[1727286051354,3.3393,149.74,149.71,3.3398]
[1727286053555,3.3391,149.75,149.67,16.05]
[1727286053751,16.05,149.76,149.69,16.05]
[1727286053962,3.3391,149.75,149.69,16.05]
[1727286054363,3.3391,149.75,149.72,3.3396]
[1727286056151,16.88733515,149.76,149.71,10.27]
[1727286056357,16.88733515,149.76,149.73,3.3394]
[1727286056558,16.88733515,149.76,149.71,10.27]
[1727286058658,16.88733515,149.76,149.72,3.3396]
[1727286060064,10.27,149.73,149.71,3.3398]
[1727286060665,3.27853515,149.76,149.72,13.6097]
[1727286060860,10.27,149.76,149.72,13.6097]
[1727286061170,3.38613114,149.75,149.72,13.6097]
[1727286061365,3.3389,149.76,149.72,3.3397]
[1727286061664,13.63407601,149.75,149.72,3.3397]
[1727286061859,10.27,149.73,149.66,4.1359]
[1727286062167,10.27,149.68,149.64,80.2]
[1727286062363,10.27,149.67,149.64,3.3414]
[1727286062569,10.27,149.66,149.61,10.27]
[1727286062862,10.27,149.66,149.63,3.3415]
[1727286063465,10.27,149.65,149.61,3.3421]
[1727286063768,10.27,149.66,149.61,10.27]
[1727286063964,10.27,149.66,149.62,3.3417]
[1727286064172,3.37377991,149.66,149.61,10.27]
[1727286064367,3.37377991,149.66,149.62,10.27]
[1727286064569,3.29221821,149.66,149.6,20.0573]
[1727286064766,16.05,149.68,149.6,20.0573]
[1727286064966,16.05,149.68,149.6,4.0073]
[1727286064967,19.42478272,149.68,149.6,4.0073]
[1727286065369,3.3412,149.66,149.61,3.3421]
[1727286065569,19.42478272,149.68,149.61,3.3421]
[1727286065765,3.37478272,149.68,149.61,3.3421]
[1727286065970,16.05,149.66,149.61,3.3421]
[1727286066367,16.05,149.66,149.6,6.0789]
[1727286066675,16.05,149.66,149.6,4.6767]
[1727286066871,19.46179617,149.66,149.6,4.6767]
[1727286067065,16.05,149.64,149.56,1.3087]
[1727286067465,3.3418,149.63,149.58,3.3427]
[1727286067877,16.05,149.64,149.56,1.3087]
[1727286068174,3.3416,149.64,149.59,3.3424]
[1727286070471,3.3416,149.64,149.6,3.3423]
[1727286071282,1.3165,149.65,149.57,16.05]
[1727286071778,19.46179617,149.66,149.57,16.05]
[1727286071977,22.80289617,149.66,149.57,16.05]
[1727286072370,3.41179617,149.66,149.59,16.05]
[1727286072576,3.3409,149.67,149.62,3.3418]
[1727286072774,3.42539958,149.66,149.62,3.3418]
[1727286073481,6.76639958,149.66,149.62,3.3418]
[1727286075075,16.05,149.7,149.61,16.05]
[1727286075280,19.45667424,149.7,149.61,16.05]
[1727286075783,3.3407,149.68,149.61,16.05]
[1727286076381,3.3407,149.68,149.63,3.3417]
[1727286076779,3.3407,149.68,149.61,16.05]
[1727286077280,3.3407,149.68,149.64,3.3415]
[1727286077677,6.98104786,149.81,149.65,16.05]
[1727286077878,6.98104786,149.81,149.72,3.3397]
[1727286077879,1.3607,149.79,149.72,3.3397]
[1727286078087,17.01887688,149.78,149.69,16.05]
[1727286078277,3.3395,149.73,149.68,3.3405]
[1727286078886,19.3893,149.74,149.69,3.3403]
[1727286079587,22.75104052,149.74,149.69,3.3403]
[1727286080287,16.05,149.72,149.66,1.2836]
[1727286080686,16.05,149.72,149.68,3.3405]
[1727286081492,16.05,149.72,149.67,3.3407]
[1727286082086,3.3401,149.71,149.66,4.6246]
[1727286082285,16.05,149.72,149.66,1.2836]
[1727286082487,3.34,149.71,149.66,3.3409]
[1727286082787,3.34,149.71,149.61,16.05]
[1727286083184,20.7766,149.72,149.63,16.05]
[1727286083384,17.4368,149.72,149.64,1.3565]
[1727286083784,20.7767,149.72,149.64,1.3565]
[1727286084291,17.4368,149.72,149.64,1.3565]
[1727286084889,1.3891,149.73,149.64,2.6825]
[1727286086591,10.26,149.72,149.69,3.3402]
[1727286087498,10.26,149.72,149.7,3.3401]
[1727286089897,1.3891,149.73,149.71,3.3399]
[1727286090099,13.62174052,149.74,149.68,10.26]
[1727286090402,10.26,149.71,149.68,3.3405]
[1727286090701,10.26,149.69,149.64,14.3086]
[1727286091193,10.26,149.69,149.67,3.3407]
[1727286091391,3.35272095,149.68,149.67,3.3407]
[1727286091597,10.26,149.69,149.67,3.3407]
[1727286092299,13.53115924,149.69,149.66,3.3409]
[1727286093304,13.53115924,149.69,149.67,3.3408]
[1727286093503,10.26,149.71,149.65,10.26]
[1727286094003,10.26,149.71,149.68,3.3405]
[1727286094304,3.39417034,149.7,149.68,3.3405]
[1727286094903,3.39417034,149.7,149.65,10.26]
[1727286095289,3.39417034,149.7,149.68,3.3406]
[1727286097103,3.39417034,149.7,149.67,3.3407]
[1727286097506,13.65417034,149.7,149.67,3.3407]
[1727286097801,10.26,149.68,149.63,10.26]
[1727286098601,10.26,149.68,149.65,3.3412]
[1727286099100,10.26,149.69,149.64,10.26]
[1727286099805,10.26,149.69,149.66,3.3409]
[1727286101701,13.6004,149.69,149.64,10.26]
[1727286101908,10.26,149.68,149.65,3.3411]
[1727286102201,10.26,149.68,149.63,10.26]
[1727286102906,13.6007,149.68,149.64,3.3414]
[1727286103095,10.26,149.67,149.61,1.3648]
[1727286103299,10.26,149.64,149.61,1.3648]
[1727286103511,10.26,149.63,149.6,83.5622]
[1727286103702,10.26,149.62,149.6,80.22]
[1727286104407,3.37067754,149.61,149.6,80.22]
[1727286104606,10.26,149.62,149.56,10.26]
[1727286105206,13.55911042,149.62,149.56,10.26]
[1727286105503,13.55911042,149.62,149.59,3.3425]
[1727286109810,16.90101042,149.62,149.58,3.3427]
[1727286110112,16.90101042,149.62,149.54,2.6661]
[1727286110113,10.26,149.6,149.54,12.9261]
[1727286111413,3.27613198,149.59,149.54,12.9261]
[1727286111613,3.27613198,149.59,149.56,3.3431]
[1727286112916,13.6024,149.6,149.56,3.3431]
[1727286113618,3.33266315,149.59,149.56,3.3431]
[1727286114121,10.26,149.58,149.55,3.3434]
[1727286114417,10.26,149.58,149.54,2.6661]
[1727286114621,13.6032,149.57,149.53,3.3438]
[1727286115023,13.6032,149.57,149.51,99.45995257]
[1727286115315,13.64707937,149.57,149.54,3.3437]
[1727286115821,13.64707937,149.57,149.53,3.3438]
[1727286116022,16.99017937,149.57,149.53,3.3438]
[1727286116627,10.26,149.55,149.52,3.3441]
[1727286116925,10.26,149.55,149.51,89.19995257]
[1727286117224,10.26,149.53,149.49,80.26]
[1727286118427,10.26,149.53,149.5,3.3444]
[1727286118621,13.65511542,149.53,149.5,3.3444]
[1727286119424,16.99911542,149.53,149.5,3.3444]
[1727286119621,10.26,149.51,149.44,80.28]
[1727286119823,13.52530612,149.51,149.46,10.26]
[1727286120122,3.3446,149.5,149.46,13.6054]
[1727286120318,13.52530612,149.51,149.46,3.3454]
[1727286120716,3.3447,149.5,149.46,3.3454]
[1727286120917,13.52530612,149.51,149.47,3.3453]
[1727286121114,3.26530612,149.51,149.45,1.359]
[1727286121329,10.26,149.5,149.45,11.619]
[1727286121523,13.65993835,149.5,149.46,3.3455]
[1727286121824,17.00463835,149.5,149.46,3.3455]
[1727286122222,13.65993835,149.5,149.45,3.3456]
[1727286122429,17.00453835,149.5,149.45,13.6056]
[1727286122725,17.00453835,149.5,149.45,10.26]
[1727286123132,13.65993835,149.5,149.46,3.3453]
[1727286123421,13.65993835,149.5,149.45,10.26]
[1727286124029,10.26,149.51,149.46,10.26]
[1727286124527,13.67723006,149.51,149.48,3.3449]
[1727286124719,13.67723006,149.51,149.46,10.26]
[1727286124922,13.67723006,149.51,149.42,1.3745]
[1727286125127,3.54,149.59,149.49,3.3447]
[1727286125433,10.26,149.51,149.49,3.3447]
[1727286125823,3.41120556,149.52,149.42,1.3745]
[1727286126025,3.54,149.59,149.47,10.26]
[1727286126232,10.26,149.53,149.47,10.26]
[1727286126525,3.34594015,149.52,149.46,10.26]
[1727286126726,10.26,149.54,149.49,10.26]
[1727286127223,10.26,149.5,149.42,1.3745]
[1727286127528,10.26,149.47,149.42,11.6345]
[1727286127729,10.26,149.47,149.44,3.3458]
[1727286128224,10.26,149.45,149.42,1.3745]
[1727286128430,10.26,149.45,149.43,3.3461]
[1727286128634,10.26,149.45,149.42,1.3745]
[1727286128830,10.26,149.43,149.34,6.6964]
[1727286129033,10.3014,149.53,149.38,11.6467]
[1727286129034,10.26,149.44,149.38,11.6467]
[1727286129335,10.26,149.44,149.38,1.3867]
[1727286129631,10.26,149.42,149.38,11.6467]
[1727286129832,3.29328157,149.46,149.38,11.6467]
[1727286130048,13.6062,149.43,149.4,3.3466]
[1727286130225,10.26,149.43,149.39,10.26]
[1727286130425,16.08,149.45,149.37,1.3825]
[1727286130633,19.37572088,149.45,149.39,3.347]
[1727286130831,19.37572088,149.45,149.37,1.3825]
[1727286131337,3.3463,149.43,149.39,3.3469]
[1727286131529,16.08,149.43,149.37,1.3825]
[1727286131926,16.08,149.43,149.38,3.3472]
[1727286132128,16.08,149.41,149.31,96.4]
[1727286132332,16.08,149.41,149.32,2.671]
[1727286132535,16.08,149.39,149.32,2.671]
[1727286132729,19.42929351,149.39,149.32,2.671]
[1727286132925,16.08,149.41,149.32,2.671]
[1727286133136,16.08,149.41,149.33,16.08]
[1727286133333,19.43130248,149.41,149.33,16.08]
[1727286133737,3.347,149.4,149.33,16.08]
[1727286133937,19.43130248,149.41,149.33,16.08]
[1727286134139,2.2852,149.46,149.22,169.5152712]
[1727286134140,16.08,149.39,149.22,169.5152712]
[1727286134341,16.08,149.39,149.28,16.08]
[1727286134638,19.41467159,149.39,149.29,1.2885]
[1727286134837,3.3474,149.38,149.29,1.2885]
[1727286135035,19.41467159,149.39,149.29,1.2885]
[1727286135536,3.33467159,149.39,149.3,16.08]
[1727286136039,16.08,149.4,149.3,16.08]
[1727286136236,3.3472,149.39,149.3,16.08]
[1727286136736,3.3472,149.39,149.36,3.3476]
[1727286136937,16.08,149.39,149.23,6.7013]
[1727286137140,16.08,149.38,149.29,16.08]
[1727286137343,3.29749464,149.37,149.3,1.4017]
[1727286137536,16.08,149.38,149.33,3.3483]
[1727286137730,16.08,149.38,149.3,1.4017]
[1727286137731,3.27639335,149.37,149.3,1.4017]
[1727286137932,16.08,149.36,149.23,6.7013]
[1727286138237,16.08,149.36,149.26,17.3746]
[1727286138238,3.3483,149.34,149.26,17.3746]
[1727286139036,3.3485,149.33,149.26,17.3746]
[1727286139235,16.08,149.36,149.26,1.2946]
[1727286139441,16.08,149.36,149.26,17.3746]
[1727286140143,3.3483,149.34,149.26,17.3746]
[1727286140642,3.3484,149.33,149.29,3.3491]
[1727286141238,3.3484,149.33,149.3,3.349]
[1727286141640,3.3482,149.34,149.26,17.3746]
[1727286141946,16.08,149.38,149.28,16.08]
[1727286142242,1.3711,149.39,149.3,16.08]
[1727286142243,3.3475,149.37,149.3,16.08]
[1727286142435,3.3475,149.37,149.34,3.348]
[1727286142633,1.3711,149.39,149.3,16.08]
[1727286142942,19.41232851,149.4,149.34,3.3481]
[1727286143144,19.41232851,149.4,149.31,2.673]
[1727286143345,3.3471,149.39,149.31,2.673]
[1727286143646,16.08,149.41,149.32,1.3885]
[1727286144145,3.3471,149.39,149.36,3.3476]
[1727286145042,1.3501,149.46,149.32,17.4685]
[1727286145043,1.3501,149.46,149.38,16.08]
[1727286145341,3.36068868,149.45,149.38,16.08]
[1727286145549,3.31479868,149.47,149.39,1.3885]
[1727286145751,16.08,149.48,149.39,4.0224]
[1727286146140,1.4058,149.52,149.4,16.08]
[1727286146342,4.70620849,149.52,149.42,16.08]
[1727286146547,17.4858,149.52,149.42,16.08]
[1727286146740,20.77984674,149.52,149.42,16.08]
[1727286147137,16.08,149.51,149.42,16.08]
[1727286147951,3.3447,149.5,149.45,3.3455]
[1727286148142,16.08,149.51,149.45,3.3455]
[1727286148544,3.3447,149.5,149.46,3.3454]
[1727286148745,3.3447,149.5,149.4,16.08]
[1727286148746,20.77984674,149.52,149.43,16.08]
[1727286149054,3.29404674,149.52,149.44,16.08]
[1727286149240,16.08,149.54,149.44,16.08]
[1727286149446,3.4303221,149.53,149.44,16.08]
[1727286149848,16.08,149.54,149.49,3.3447]
[1727286150042,16.08,149.54,149.44,16.08]
[1727286150245,3.35776439,149.55,149.46,16.08]
[1727286150451,3.3435,149.55,149.51,3.3442]
[1727286150845,6.63399531,149.55,149.51,3.3442]
[1727286151250,3.3438,149.54,149.5,3.3445]
[1727286152147,3.29049531,149.55,149.51,3.3442]
[1727286152351,3.29049531,149.55,149.47,3.9547]
[1727286152648,3.3431,149.57,149.52,3.3441]
[1727286152853,6.61753105,149.57,149.52,3.3441]
[1727286153055,3.27443105,149.57,149.52,3.3441]
[1727286153250,16.08,149.58,149.52,3.3441]
[1727286153752,16.08,149.54,149.47,3.9547]
[1727286154052,3.3443,149.52,149.47,3.9547]
[1727286154251,19.4243,149.52,149.47,1.3101]
[1727286154552,16.08,149.52,149.43,80.36]
[1727286155358,3.3446,149.51,149.43,80.36]
[1727286156061,3.3446,149.5,149.46,3.3453]
[1727286156349,3.3446,149.5,149.43,80.36]
[1727286156750,16.08,149.48,149.43,80.36]
[1727286157255,16.08,149.48,149.44,3.3459]
[1727286157450,19.4252,149.48,149.44,3.3459]
[1727286158354,16.08,149.5,149.43,80.36]
[1727286158551,16.08,149.52,149.43,80.36]
[1727286158854,3.3444,149.51,149.44,1.278]
[1727286159054,3.3444,149.51,149.44,2.5659]
[1727286159851,16.08,149.52,149.48,3.3449]
[1727286160455,19.4243,149.52,149.48,3.3449]
[1727286160655,3.3443,149.52,149.48,3.3449]
[1727286160960,3.3443,149.52,149.49,3.3448]
[1727286161358,19.424,149.53,149.49,3.3448]
[1727286162563,3.3442,149.52,149.48,3.345]
[1727286163060,16.08,149.53,149.48,3.345]
[1727286163259,3.3444,149.51,149.47,3.3452]
[1727286163757,3.3444,149.51,149.44,18.6459]
[1727286163959,3.3447,149.5,149.44,2.5659]
[1727286164261,16.08,149.51,149.44,2.5659]
[1727286164562,19.4245,149.51,149.46,3.3455]
[1727286164861,16.08,149.51,149.44,2.5659]
[1727286165861,3.3447,149.5,149.46,3.3454]
[1727286166357,16.08,149.49,149.44,4.6239]
[1727286166556,16.08,149.49,149.41,89.26106165]
[1727286166951,3.3454,149.47,149.43,3.346]
[1727286167359,3.3457,149.46,149.43,3.346]
[1727286167752,16.08,149.47,149.42,3.3463]
[1727286168265,3.3456,149.46,149.42,3.3463]
[1727286168661,3.3456,149.46,149.43,3.3461]
[1727286169564,16.08,149.47,149.41,89.26106165]
[1727286170263,3.3458,149.45,149.42,3.3462]
[1727286170460,16.08,149.47,149.42,3.3462]
[1727286170660,3.3456,149.46,149.43,3.3461]
[1727286171062,16.08,149.47,149.43,3.3461]
[1727286171268,19.4254,149.47,149.43,3.3461]
[1727286171565,16.08,149.47,149.41,89.26106165]
[1727286171768,3.3457,149.45,149.4,1.3879]
[1727286171963,3.3457,149.45,149.38,16.08]
[1727286172168,3.3457,149.45,149.41,3.3466]
[1727286173661,19.4256,149.46,149.41,3.3466]
[1727286174474,19.4256,149.46,149.42,3.3464]
[1727286174873,3.3456,149.46,149.42,3.3464]
[1727286175870,19.35018342,149.48,149.36,81.7347]
[1727286175871,3.3453,149.47,149.43,3.3461]
[1727286176072,19.35018342,149.48,149.39,16.08]
[1727286176267,19.35018342,149.48,149.37,16.08]
[1727286176469,1.3203,149.54,149.41,16.08]
[1727286176662,17.04921657,149.53,149.43,16.08]
[1727286176864,16.08,149.53,149.43,17.474]
[1727286177270,3.3443,149.52,149.48,3.345]
[1727286177471,16.08,149.53,149.48,3.345]
[1727286177874,3.3442,149.52,149.48,3.345]
[1727286179675,3.3444,149.51,149.43,17.474]
[1727286180175,6.70125131,149.5,149.45,3.3457]
[1727286180378,6.70125131,149.5,149.43,17.474]
[1727286180767,16.08,149.53,149.43,17.474]
[1727286180768,3.3444,149.51,149.43,17.474]
[1727286180973,1.3203,149.54,149.45,16.08]
[1727286182173,3.3442,149.52,149.48,3.3449]
[1727286183285,3.3445,149.51,149.47,3.3452]
[1727286183485,3.38688085,149.5,149.43,17.474]
[1727286183685,16.08,149.53,149.43,17.474]
[1727286184088,3.3443,149.52,149.47,3.3451]